[Event "*** SCC Grand Prix: Titled Tuesday Blitz"]
[Site "Chess.com"]
[Date "2020.06.09"]
[Round "3"]
[White "Lagmantr"]
[Black "Glek_Igor"]
[Result "1-0"]
[WhiteElo "2714"]
[BlackElo "2443"]
[TimeControl "180+1"]
[EndTime "9:29:44 PDT"]
[Termination "Lagmantr won on time"]

1. e4 {[%clk 0:03:00.9]} 1... c5 {[%clk 0:02:57.1]} 2. Nf3 {[%clk 0:03:00.6]}
2... a6 {[%clk 0:02:57.1]} 3. c3 {[%clk 0:02:59.1]} 3... e6 {[%clk 0:02:56.6]}
4. d4 {[%clk 0:02:59.2]} 4... d5 {[%clk 0:02:57]} 5. exd5 {[%clk 0:02:54.8]}
5... exd5 {[%clk 0:02:56.9]} 6. Bd3 {[%clk 0:02:55.3]} 6... c4 {[%clk
0:02:56.3]} 7. Bc2 {[%clk 0:02:55.3]} 7... Nc6 {[%clk 0:02:56.3]} 8. O-O {[%clk
0:02:55.4]} 8... Bd6 {[%clk 0:02:56.8]} 9. Re1+ {[%clk 0:02:51.8]} 9... Nge7
{[%clk 0:02:56.6]} 10. Nbd2 {[%clk 0:02:52.3]} 10... h6 {[%clk 0:02:55.7]} 11.
Nf1 {[%clk 0:02:51.3]} 11... O-O {[%clk 0:02:55.2]} 12. Ng3 {[%clk 0:02:51.4]}
12... Bxg3 {[%clk 0:02:50.7]} 13. hxg3 {[%clk 0:02:50.6]} 13... Bf5 {[%clk
0:02:48.4]} 14. Bf4 {[%clk 0:02:46.8]} 14... Qd7 {[%clk 0:02:43.5]} 15. Ne5
{[%clk 0:02:41.3]} 15... Nxe5 {[%clk 0:02:42]} 16. Rxe5 {[%clk 0:02:42.2]} 16...
Bxc2 {[%clk 0:02:39.9]} 17. Qxc2 {[%clk 0:02:41.6]} 17... Ng6 {[%clk 0:02:17.8]}
18. Re2 {[%clk 0:02:34.2]} 18... Rfe8 {[%clk 0:02:16]} 19. Rae1 {[%clk
0:02:32.6]} 19... b5 {[%clk 0:02:06.3]} 20. a3 {[%clk 0:02:27.2]} 20... Rxe2
{[%clk 0:01:48.1]} 21. Qxe2 {[%clk 0:02:26.4]} 21... Qf5 {[%clk 0:01:33.1]} 22.
Bd6 {[%clk 0:02:14.3]} 22... h5 {[%clk 0:01:11]} 23. Qf3 {[%clk 0:01:57.1]}
23... Qxf3 {[%clk 0:01:06.1]} 24. gxf3 {[%clk 0:01:58]} 24... f6 {[%clk
0:01:05.3]} 25. f4 {[%clk 0:01:48.5]} 25... f5 {[%clk 0:01:04]} 26. Kg2 {[%clk
0:01:39]} 26... Kf7 {[%clk 0:01:03.7]} 27. Be5 {[%clk 0:01:36.9]} 27... h4
{[%clk 0:00:58.8]} 28. Rh1 {[%clk 0:01:24]} 28... hxg3 {[%clk 0:00:57.2]} 29.
fxg3 {[%clk 0:01:23.5]} 29... Nxe5 {[%clk 0:00:42.2]} 30. dxe5 {[%clk 0:01:21]}
30... a5 {[%clk 0:00:40.2]} 31. Ra1 {[%clk 0:00:55.9]} 31... Rd8 {[%clk
0:00:31.9]} 32. Rd1 {[%clk 0:00:34.7]} 32... Ke6 {[%clk 0:00:30.3]} 33. Rd2
{[%clk 0:00:18.8]} 33... b4 {[%clk 0:00:29.4]} 34. axb4 {[%clk 0:00:16]} 34...
axb4 {[%clk 0:00:29.1]} 35. cxb4 {[%clk 0:00:13.5]} 35... Rb8 {[%clk 0:00:26]}
36. Kh3 {[%clk 0:00:13.5]} 36... Rxb4 {[%clk 0:00:24.9]} 37. Kh4 {[%clk
0:00:13.8]} 37... Rb3 {[%clk 0:00:24.2]} 38. g4 {[%clk 0:00:13.2]} 38... g6
{[%clk 0:00:18.6]} 39. Rg2 {[%clk 0:00:07.2]} 39... d4 {[%clk 0:00:16]} 40. Kg5
{[%clk 0:00:07.4]} 40... Rf3 {[%clk 0:00:08.3]} 41. Rh2 {[%clk 0:00:04]} 41...
d3 {[%clk 0:00:06.8]} 42. gxf5+ {[%clk 0:00:04.3]} 42... gxf5 {[%clk 0:00:05.9]}
43. Rh6+ {[%clk 0:00:05.2]} 43... Kd5 {[%clk 0:00:03.9]} 44. Rd6+ {[%clk
0:00:05.5]} 44... Ke4 {[%clk 0:00:03.9]} 45. e6 {[%clk 0:00:06]} 45... Rg3+
{[%clk 0:00:03.5]} 46. Kf6 {[%clk 0:00:05.8]} 46... Rg8 {[%clk 0:00:02.7]} 47.
e7 {[%clk 0:00:06.1]} 47... Rh8 {[%clk 0:00:02.6]} 48. Kg7 {[%clk 0:00:05.1]}
48... Re8 {[%clk 0:00:01.1]} 49. Kf7 {[%clk 0:00:05.3]} 1-0

[Event "*** SCC Grand Prix: Titled Tuesday Blitz"]
[Site "Chess.com"]
[Date "2020.06.09"]
[Round "3"]
[White "DrBergerBerger"]
[Black "SergioGarciaFuentes"]
[Result "1-0"]
[WhiteElo "2435"]
[BlackElo "2232"]
[TimeControl "180+1"]
[EndTime "9:29:49 PDT"]
[Termination "DrBergerBerger won by resignation"]

1. e4 {[%clk 0:03:00.9]} 1... e5 {[%clk 0:02:58.3]} 2. Nf3 {[%clk 0:03:00.5]}
2... Nf6 {[%clk 0:02:58.4]} 3. Nxe5 {[%clk 0:02:55.7]} 3... d6 {[%clk
0:02:57.9]} 4. Nf3 {[%clk 0:02:56]} 4... Nxe4 {[%clk 0:02:58.3]} 5. d3 {[%clk
0:02:56.5]} 5... Nf6 {[%clk 0:02:57.3]} 6. d4 {[%clk 0:02:57.2]} 6... Be7 {[%clk
0:02:56.2]} 7. c4 {[%clk 0:02:43.4]} 7... O-O {[%clk 0:02:55.2]} 8. Nc3 {[%clk
0:02:42.6]} 8... Re8 {[%clk 0:02:54.8]} 9. Be2 {[%clk 0:02:38.2]} 9... Nbd7
{[%clk 0:02:48]} 10. O-O {[%clk 0:02:35.1]} 10... Nf8 {[%clk 0:02:48.3]} 11. Re1
{[%clk 0:02:29.8]} 11... Bf5 {[%clk 0:02:31.8]} 12. Nh4 {[%clk 0:02:23.4]} 12...
Bd7 {[%clk 0:02:25.7]} 13. Bd3 {[%clk 0:02:20.9]} 13... Qc8 {[%clk 0:01:51]} 14.
Qc2 {[%clk 0:02:17.4]} 14... Ne6 {[%clk 0:01:32.5]} 15. Nf5 {[%clk 0:02:10.4]}
15... Bf8 {[%clk 0:01:30.4]} 16. Be3 {[%clk 0:01:51.5]} 16... c6 {[%clk
0:01:21.6]} 17. Rac1 {[%clk 0:01:30.3]} 17... Ng4 {[%clk 0:01:10.9]} 18. d5
{[%clk 0:01:11.3]} 18... Nxe3 {[%clk 0:01:08.7]} 19. Rxe3 {[%clk 0:01:10.6]}
19... Nc5 {[%clk 0:01:05.9]} 20. Rxe8 {[%clk 0:01:01.6]} 20... Qxe8 {[%clk
0:01:02]} 21. Ne3 {[%clk 0:01:01.7]} 21... Nxd3 {[%clk 0:00:56.4]} 22. Qxd3
{[%clk 0:01:02.6]} 22... c5 {[%clk 0:00:56.3]} 23. Re1 {[%clk 0:00:57.3]} 23...
Qe5 {[%clk 0:00:47.2]} 24. Nc2 {[%clk 0:00:53]} 24... Qf6 {[%clk 0:00:47.1]} 25.
b3 {[%clk 0:00:42.4]} 25... Bf5 {[%clk 0:00:45.9]} 26. Qd2 {[%clk 0:00:41.7]}
26... h6 {[%clk 0:00:30.9]} 27. Ne3 {[%clk 0:00:39.7]} 27... Bd7 {[%clk
0:00:28.3]} 28. Nf1 {[%clk 0:00:34.1]} 28... Re8 {[%clk 0:00:26.5]} 29. Rxe8
{[%clk 0:00:28.4]} 29... Bxe8 {[%clk 0:00:27.4]} 30. Qe3 {[%clk 0:00:25.3]}
30... Bd7 {[%clk 0:00:26.7]} 31. Nd2 {[%clk 0:00:24.2]} 31... g6 {[%clk
0:00:24.5]} 32. Nde4 {[%clk 0:00:22.1]} 32... Qe5 {[%clk 0:00:21.8]} 33. f4
{[%clk 0:00:20.7]} 33... Qd4 {[%clk 0:00:21.9]} 34. Qxd4 {[%clk 0:00:19.8]}
34... cxd4 {[%clk 0:00:22.8]} 35. Nd1 {[%clk 0:00:19.5]} 35... Bg7 {[%clk
0:00:22.5]} 36. Kf1 {[%clk 0:00:19.6]} 36... Bf5 {[%clk 0:00:20.1]} 37. Ndf2
{[%clk 0:00:18.8]} 37... g5 {[%clk 0:00:17]} 38. fxg5 {[%clk 0:00:17.7]} 38...
hxg5 {[%clk 0:00:17.9]} 39. Ke2 {[%clk 0:00:17.1]} 39... f6 {[%clk 0:00:16.3]}
40. Nxd6 {[%clk 0:00:16.3]} 40... Bb1 {[%clk 0:00:15.5]} 41. a3 {[%clk 0:00:13]}
41... Ba2 {[%clk 0:00:15.6]} 42. Kd3 {[%clk 0:00:11.6]} 42... Bxb3 {[%clk
0:00:14.2]} 43. Kxd4 {[%clk 0:00:11.6]} 43... f5+ {[%clk 0:00:14.3]} 44. Kd3
{[%clk 0:00:12.2]} 44... f4 {[%clk 0:00:12.2]} 45. Nxb7 {[%clk 0:00:11.6]} 45...
Kf8 {[%clk 0:00:10.2]} 46. Ne4 {[%clk 0:00:11.4]} 46... g4 {[%clk 0:00:08.3]}
47. Nbc5 {[%clk 0:00:11.2]} 47... Ba2 {[%clk 0:00:07.1]} 48. Ne6+ {[%clk
0:00:11.4]} 48... Kg8 {[%clk 0:00:06.7]} 49. Nxf4 {[%clk 0:00:10.7]} 49... Bb1+
{[%clk 0:00:05.5]} 50. Ke3 {[%clk 0:00:09.5]} 50... Ba2 {[%clk 0:00:06.4]} 51.
c5 {[%clk 0:00:08]} 51... Bf8 {[%clk 0:00:05.4]} 52. c6 {[%clk 0:00:07.7]} 52...
Kf7 {[%clk 0:00:05.7]} 53. c7 {[%clk 0:00:07.2]} 53... Bc5+ {[%clk 0:00:03.4]}
54. Nxc5 {[%clk 0:00:06.6]} 1-0

[Event "*** SCC Grand Prix: Titled Tuesday Blitz"]
[Site "Chess.com"]
[Date "2020.06.09"]
[Round "3"]
[White "TERMINATOR_PC"]
[Black "FMOlexandrProhorov"]
[Result "1-0"]
[WhiteElo "2479"]
[BlackElo "2072"]
[TimeControl "180+1"]
[EndTime "9:29:52 PDT"]
[Termination "TERMINATOR_PC won by resignation"]

1. e4 {[%clk 0:03:00.9]} 1... c5 {[%clk 0:02:58.3]} 2. Nc3 {[%clk 0:03:00.3]}
2... Nc6 {[%clk 0:02:55.4]} 3. g3 {[%clk 0:03:00.7]} 3... g6 {[%clk 0:02:55.1]}
4. Bg2 {[%clk 0:03:01.1]} 4... Bg7 {[%clk 0:02:55.8]} 5. d3 {[%clk 0:03:01.6]}
5... d6 {[%clk 0:02:54.1]} 6. Be3 {[%clk 0:03:02.1]} 6... Nd4 {[%clk 0:02:51.3]}
7. Qd2 {[%clk 0:03:01.7]} 7... Qa5 {[%clk 0:02:50.5]} 8. Nge2 {[%clk 0:02:43.9]}
8... e6 {[%clk 0:02:46.8]} 9. O-O {[%clk 0:02:39.3]} 9... Ne7 {[%clk 0:02:46.2]}
10. a3 {[%clk 0:01:41.1]} 10... Nxe2+ {[%clk 0:02:24.2]} 11. Qxe2 {[%clk
0:01:38.6]} 11... Bxc3 {[%clk 0:02:16.9]} 12. bxc3 {[%clk 0:01:39.5]} 12... Qxc3
{[%clk 0:02:16.8]} 13. h3 {[%clk 0:01:31.6]} 13... O-O {[%clk 0:02:13.8]} 14.
Bh6 {[%clk 0:01:28]} 14... Re8 {[%clk 0:02:11.1]} 15. h4 {[%clk 0:01:17.1]}
15... Bd7 {[%clk 0:02:09.9]} 16. h5 {[%clk 0:01:13.2]} 16... Ba4 {[%clk
0:02:07]} 17. Rac1 {[%clk 0:01:01.5]} 17... Rac8 {[%clk 0:02:03.2]} 18. Qg4
{[%clk 0:00:51.7]} 18... Nc6 {[%clk 0:01:41.4]} 19. f4 {[%clk 0:00:41]} 19...
Kh8 {[%clk 0:01:12.9]} 20. hxg6 {[%clk 0:00:32.7]} 20... fxg6 {[%clk 0:01:10.7]}
21. f5 {[%clk 0:00:25.7]} 21... exf5 {[%clk 0:01:10.4]} 22. exf5 {[%clk
0:00:25.3]} 22... Qd4+ {[%clk 0:01:10.7]} 23. Qxd4+ {[%clk 0:00:24.4]} 23...
Nxd4 {[%clk 0:01:11.3]} 24. fxg6 {[%clk 0:00:19.5]} 24... hxg6 {[%clk 0:01:05]}
25. Kh2 {[%clk 0:00:17.5]} 25... Rc7 {[%clk 0:00:53.8]} 26. Rf6 {[%clk
0:00:16.3]} 26... Kh7 {[%clk 0:00:50.8]} 27. Bg5 {[%clk 0:00:13.7]} 27... Nxc2
{[%clk 0:00:50.4]} 28. Rh1 {[%clk 0:00:13.4]} 28... Re2 {[%clk 0:00:45.6]} 29.
Rxd6 {[%clk 0:00:12]} 29... Kg7 {[%clk 0:00:36.3]} 30. Kh3 {[%clk 0:00:09.5]}
30... Bd7+ {[%clk 0:00:35.2]} 31. g4 {[%clk 0:00:09.1]} 31... Nd4 {[%clk
0:00:21.2]} 32. Be4 {[%clk 0:00:06.2]} 32... Be8 {[%clk 0:00:16.3]} 33. Kg3
{[%clk 0:00:06.2]} 33... Nc2 {[%clk 0:00:13.7]} 34. Bh6+ {[%clk 0:00:05.5]}
34... Kg8 {[%clk 0:00:11.6]} 35. Bf4 {[%clk 0:00:06.4]} 35... Bf7 {[%clk
0:00:11.1]} 36. Be5 {[%clk 0:00:05.8]} 36... Re3+ {[%clk 0:00:08.3]} 37. Kf4
{[%clk 0:00:05]} 37... Kf8 {[%clk 0:00:08.7]} 38. Bf6 {[%clk 0:00:03.7]} 38...
Bg8 {[%clk 0:00:07.8]} 39. Bxg6 {[%clk 0:00:02.4]} 39... Rf7 {[%clk 0:00:06.8]}
40. Bxf7 {[%clk 0:00:02.9]} 40... Kxf7 {[%clk 0:00:06.7]} 41. Bg5 {[%clk
0:00:03.3]} 41... Nd4 {[%clk 0:00:05.4]} 42. Kxe3 {[%clk 0:00:03.8]} 42... Nc6
{[%clk 0:00:05.6]} 43. Rxc6 {[%clk 0:00:04]} 43... bxc6 {[%clk 0:00:05.5]} 44.
Rh6 {[%clk 0:00:04.8]} 44... Ke8 {[%clk 0:00:04.8]} 45. Rxc6 {[%clk 0:00:05.4]}
45... Bd5 {[%clk 0:00:05.2]} 46. Rd6 {[%clk 0:00:05.5]} 46... Bb7 {[%clk
0:00:04.8]} 47. Bf4 {[%clk 0:00:06.4]} 47... Ke7 {[%clk 0:00:04.4]} 48. Rh6
{[%clk 0:00:06.7]} 48... Bc8 {[%clk 0:00:04.1]} 49. Rh7+ {[%clk 0:00:07.2]}
49... Ke6 {[%clk 0:00:02.5]} 50. g5 {[%clk 0:00:07.6]} 50... Kf5 {[%clk
0:00:02.7]} 51. Rxa7 {[%clk 0:00:07.6]} 51... Be6 {[%clk 0:00:02.6]} 52. Rc7
{[%clk 0:00:07.4]} 52... c4 {[%clk 0:00:02.7]} 53. Rxc4 {[%clk 0:00:07.3]} 53...
Kg4 {[%clk 0:00:03.6]} 54. Rc5 {[%clk 0:00:07.4]} 54... Kh3 {[%clk 0:00:03]} 55.
Re5 {[%clk 0:00:07.7]} 55... Kg2 {[%clk 0:00:03.9]} 56. Rxe6 {[%clk 0:00:07.8]}
1-0

[Event "*** SCC Grand Prix: Titled Tuesday Blitz"]
[Site "Chess.com"]
[Date "2020.06.09"]
[Round "3"]
[White "Treacherous_horse64"]
[Black "Joshukid"]
[Result "0-1"]
[WhiteElo "2443"]
[BlackElo "2707"]
[TimeControl "180+1"]
[EndTime "9:29:53 PDT"]
[Termination "Joshukid won by resignation"]

1. d4 {[%clk 0:02:59.3]} 1... Nf6 {[%clk 0:02:58.2]} 2. Nf3 {[%clk 0:02:59]}
2... d5 {[%clk 0:02:58.2]} 3. e3 {[%clk 0:02:52.2]} 3... e6 {[%clk 0:02:54.4]}
4. c4 {[%clk 0:02:50.4]} 4... a6 {[%clk 0:02:50.3]} 5. b3 {[%clk 0:02:49.4]}
5... Bb4+ {[%clk 0:02:45.5]} 6. Nbd2 {[%clk 0:02:43.2]} 6... O-O {[%clk
0:02:43.9]} 7. Bd3 {[%clk 0:02:42.5]} 7... Ne4 {[%clk 0:02:43.3]} 8. O-O {[%clk
0:02:41.2]} 8... f5 {[%clk 0:02:34.6]} 9. Ne5 {[%clk 0:02:33.3]} 9... Nd7 {[%clk
0:02:28.5]} 10. f3 {[%clk 0:02:28.2]} 10... Nxe5 {[%clk 0:02:12.6]} 11. dxe5
{[%clk 0:02:22.8]} 11... Bc3 {[%clk 0:02:11.8]} 12. Rb1 {[%clk 0:02:20.1]} 12...
Nxd2 {[%clk 0:02:09.6]} 13. Bxd2 {[%clk 0:02:20.1]} 13... Bxe5 {[%clk
0:02:10.4]} 14. Qe2 {[%clk 0:02:12.5]} 14... c6 {[%clk 0:02:02.4]} 15. e4 {[%clk
0:02:04.6]} 15... dxe4 {[%clk 0:01:44.6]} 16. fxe4 {[%clk 0:02:05.5]} 16... f4
{[%clk 0:01:45.3]} 17. Kh1 {[%clk 0:01:49.6]} 17... c5 {[%clk 0:01:35.5]} 18.
Rf3 {[%clk 0:01:44.6]} 18... Bd7 {[%clk 0:01:26.4]} 19. Rbf1 {[%clk 0:01:40.7]}
19... Qc7 {[%clk 0:01:20.5]} 20. Qf2 {[%clk 0:01:14.3]} 20... Bd4 {[%clk
0:01:17.1]} 21. Qh4 {[%clk 0:00:59.6]} 21... e5 {[%clk 0:01:11.9]} 22. g3 {[%clk
0:00:53.9]} 22... fxg3 {[%clk 0:00:38.5]} 23. Rxf8+ {[%clk 0:00:39]} 23... Rxf8
{[%clk 0:00:39.4]} 24. Rxf8+ {[%clk 0:00:39.9]} 24... Kxf8 {[%clk 0:00:38.9]}
25. Qxh7 {[%clk 0:00:40.8]} 25... gxh2 {[%clk 0:00:29.7]} 26. Bg5 {[%clk
0:00:34.6]} 26... Qd6 {[%clk 0:00:25.3]} 27. Be2 {[%clk 0:00:27.3]} 27... Be6
{[%clk 0:00:20.3]} 28. Bh5 {[%clk 0:00:25.3]} 28... Qc6 {[%clk 0:00:16.3]} 29.
Qg6 {[%clk 0:00:18.9]} 29... Kg8 {[%clk 0:00:10.4]} 30. Bh6 {[%clk 0:00:12]}
30... Qd7 {[%clk 0:00:10]} 31. Kxh2 {[%clk 0:00:09.9]} 31... Qf7 {[%clk
0:00:08]} 32. Qxf7+ {[%clk 0:00:07.5]} 32... Bxf7 {[%clk 0:00:08.9]} 33. Bxf7+
{[%clk 0:00:07.5]} 33... Kxf7 {[%clk 0:00:09.8]} 34. Bd2 {[%clk 0:00:08.1]}
34... Kg6 {[%clk 0:00:08.9]} 35. Kg3 {[%clk 0:00:08.6]} 35... Kh5 {[%clk
0:00:09.4]} 36. b4 {[%clk 0:00:09]} 36... cxb4 {[%clk 0:00:07.9]} 37. Bxb4
{[%clk 0:00:09.9]} 37... b5 {[%clk 0:00:08.4]} 38. cxb5 {[%clk 0:00:09.9]} 38...
axb5 {[%clk 0:00:09.3]} 39. Kf3 {[%clk 0:00:10.3]} 39... Kh4 {[%clk 0:00:07.1]}
40. Be1+ {[%clk 0:00:08.5]} 40... Kh3 {[%clk 0:00:07.3]} 41. Bg3 {[%clk
0:00:08.9]} 41... g5 {[%clk 0:00:06.9]} 42. Bxe5 {[%clk 0:00:05.5]} 42... Bxe5
{[%clk 0:00:06.2]} 43. Ke3 {[%clk 0:00:05.4]} 43... g4 {[%clk 0:00:06.5]} 44.
Kf2 {[%clk 0:00:05.4]} 44... Kh2 {[%clk 0:00:06]} 45. Kf1 {[%clk 0:00:06.3]}
45... g3 {[%clk 0:00:06]} 46. Ke2 {[%clk 0:00:06.5]} 46... g2 {[%clk 0:00:06.5]}
47. Kf3 {[%clk 0:00:07.4]} 47... g1=Q {[%clk 0:00:05.1]} 48. Ke2 {[%clk
0:00:07.2]} 48... Qd4 {[%clk 0:00:04.8]} 0-1

[Event "*** SCC Grand Prix: Titled Tuesday Blitz"]
[Site "Chess.com"]
[Date "2020.06.09"]
[Round "3"]
[White "Pintacara"]
[Black "albi1999"]
[Result "0-1"]
[WhiteElo "2324"]
[BlackElo "2553"]
[TimeControl "180+1"]
[EndTime "9:29:56 PDT"]
[Termination "albi1999 won on time"]

1. d4 {[%clk 0:03:00.9]} 1... Nf6 {[%clk 0:02:58]} 2. Bg5 {[%clk 0:03:00.1]}
2... e6 {[%clk 0:02:53.7]} 3. e4 {[%clk 0:02:59.5]} 3... h6 {[%clk 0:02:53.5]}
4. Bxf6 {[%clk 0:02:58.8]} 4... Qxf6 {[%clk 0:02:54.4]} 5. c3 {[%clk 0:02:59.5]}
5... c5 {[%clk 0:02:53.7]} 6. Nf3 {[%clk 0:02:54.4]} 6... cxd4 {[%clk
0:02:53.5]} 7. cxd4 {[%clk 0:02:54.5]} 7... Bb4+ {[%clk 0:02:54.1]} 8. Nc3
{[%clk 0:02:54.6]} 8... O-O {[%clk 0:02:54.7]} 9. e5 {[%clk 0:02:52.7]} 9... Qd8
{[%clk 0:02:54]} 10. Bd3 {[%clk 0:02:52.5]} 10... d6 {[%clk 0:02:52.6]} 11. O-O
{[%clk 0:02:51.2]} 11... Bxc3 {[%clk 0:02:48.9]} 12. bxc3 {[%clk 0:02:50.4]}
12... dxe5 {[%clk 0:02:47.2]} 13. dxe5 {[%clk 0:02:51.3]} 13... Qc7 {[%clk
0:02:46.9]} 14. Qe2 {[%clk 0:02:39.7]} 14... Nd7 {[%clk 0:02:34.8]} 15. Rfe1
{[%clk 0:02:30.8]} 15... Rd8 {[%clk 0:02:33.8]} 16. Rac1 {[%clk 0:01:54.2]}
16... Nf8 {[%clk 0:02:29.4]} 17. c4 {[%clk 0:01:50.7]} 17... Bd7 {[%clk
0:02:29.6]} 18. c5 {[%clk 0:01:49.9]} 18... Bc6 {[%clk 0:02:29.8]} 19. Be4
{[%clk 0:01:49.2]} 19... Ng6 {[%clk 0:02:26.4]} 20. Bxg6 {[%clk 0:01:46.3]}
20... fxg6 {[%clk 0:02:27.3]} 21. Qe3 {[%clk 0:01:19.7]} 21... Qd7 {[%clk
0:02:17.2]} 22. Rc3 {[%clk 0:01:00.5]} 22... Qd5 {[%clk 0:02:03]} 23. a3 {[%clk
0:00:50.2]} 23... Rd7 {[%clk 0:01:55.8]} 24. h4 {[%clk 0:00:46.6]} 24... Rf8
{[%clk 0:01:52.6]} 25. Rcc1 {[%clk 0:00:20.5]} 25... Qd3 {[%clk 0:01:50.3]} 26.
Rcd1 {[%clk 0:00:15.8]} 26... Qxd1 {[%clk 0:01:05.4]} 27. Rxd1 {[%clk
0:00:15.1]} 27... Rxd1+ {[%clk 0:01:06.3]} 28. Kh2 {[%clk 0:00:15.3]} 28... Rfd8
{[%clk 0:01:00.6]} 29. Qf4 {[%clk 0:00:14.4]} 29... R8d3 {[%clk 0:00:52]} 30.
Qg4 {[%clk 0:00:13.7]} 30... Kf7 {[%clk 0:00:44.8]} 31. Qf4+ {[%clk 0:00:09.7]}
31... Ke7 {[%clk 0:00:45.1]} 32. Qg4 {[%clk 0:00:10]} 32... Bxf3 {[%clk
0:00:43.2]} 33. gxf3 {[%clk 0:00:10.3]} 33... R1d2 {[%clk 0:00:39.2]} 34. Kg3
{[%clk 0:00:08.6]} 34... g5 {[%clk 0:00:31.2]} 35. hxg5 {[%clk 0:00:07.5]} 35...
Rd4 {[%clk 0:00:27.6]} 36. Qh5 {[%clk 0:00:05.8]} 36... hxg5 {[%clk 0:00:26.5]}
37. Qxg5+ {[%clk 0:00:06.7]} 37... Kf7 {[%clk 0:00:27.4]} 38. Qh5+ {[%clk
0:00:06.8]} 38... Kf8 {[%clk 0:00:26.3]} 39. Qh8+ {[%clk 0:00:06.4]} 39... Kf7
{[%clk 0:00:26.8]} 40. Qb8 {[%clk 0:00:05.7]} 40... Rd7 {[%clk 0:00:25.6]} 41.
Qxa7 {[%clk 0:00:05.9]} 41... R2d5 {[%clk 0:00:24.9]} 42. Qb6 {[%clk 0:00:05.3]}
42... Rxe5 {[%clk 0:00:24]} 43. a4 {[%clk 0:00:05.7]} 43... Rf5 {[%clk
0:00:22.7]} 44. a5 {[%clk 0:00:03]} 44... Rfd5 {[%clk 0:00:20.9]} 45. c6 {[%clk
0:00:03]} 45... bxc6 {[%clk 0:00:21]} 46. a6 {[%clk 0:00:03.5]} 46... Rd1 {[%clk
0:00:18.7]} 47. a7 {[%clk 0:00:03.7]} 47... Ra1 {[%clk 0:00:18.4]} 48. Qxc6
{[%clk 0:00:02.6]} 48... Raxa7 {[%clk 0:00:18.5]} 49. Qe4 {[%clk 0:00:03.5]}
49... Ra5 {[%clk 0:00:17.9]} 50. Qf4+ {[%clk 0:00:03.5]} 50... Rf5 {[%clk
0:00:18.4]} 51. Qe3 {[%clk 0:00:04.4]} 51... Rb7 {[%clk 0:00:17.8]} 52. Qd3
{[%clk 0:00:04.2]} 52... Re7 {[%clk 0:00:16.7]} 53. Qc3 {[%clk 0:00:04.4]} 53...
Kg8 {[%clk 0:00:16.4]} 54. Kg4 {[%clk 0:00:04.8]} 54... Ref7 {[%clk 0:00:16.1]}
55. Qc8+ {[%clk 0:00:04.7]} 55... Kh7 {[%clk 0:00:15.9]} 56. Qxe6 {[%clk
0:00:05.2]} 56... Rf4+ {[%clk 0:00:16.3]} 57. Kg5 {[%clk 0:00:01.8]} 57... Rxf3
{[%clk 0:00:17.2]} 58. Qe4+ {[%clk 0:00:01.1]} 58... Kg8 {[%clk 0:00:16.5]} 59.
Qe8+ {[%clk 0:00:01.6]} 59... Rf8 {[%clk 0:00:16.8]} 60. Qe6+ {[%clk 0:00:02]}
60... Kh8 {[%clk 0:00:16.2]} 0-1

[Event "*** SCC Grand Prix: Titled Tuesday Blitz"]
[Site "Chess.com"]
[Date "2020.06.09"]
[Round "3"]
[White "Morshynska"]
[Black "Falia-p"]
[Result "0-1"]
[WhiteElo "2208"]
[BlackElo "2408"]
[TimeControl "180+1"]
[EndTime "9:29:58 PDT"]
[Termination "Falia-p won on time"]

1. e4 {[%clk 0:03:00.9]} 1... c6 {[%clk 0:02:56.4]} 2. d4 {[%clk 0:02:59.9]}
2... d5 {[%clk 0:02:56.2]} 3. Nd2 {[%clk 0:03:00]} 3... dxe4 {[%clk 0:02:55]} 4.
Nxe4 {[%clk 0:03:00.9]} 4... Nf6 {[%clk 0:02:54.3]} 5. Nxf6+ {[%clk 0:02:59.8]}
5... exf6 {[%clk 0:02:55.2]} 6. c3 {[%clk 0:02:59.2]} 6... Bd6 {[%clk
0:02:55.3]} 7. Bd3 {[%clk 0:02:58.3]} 7... O-O {[%clk 0:02:55.3]} 8. Qc2 {[%clk
0:02:58.6]} 8... Re8+ {[%clk 0:02:56.2]} 9. Ne2 {[%clk 0:02:57.8]} 9... h5
{[%clk 0:02:56.9]} 10. O-O {[%clk 0:02:50.4]} 10... h4 {[%clk 0:02:56.5]} 11.
Be3 {[%clk 0:02:19.4]} 11... Nd7 {[%clk 0:02:53.6]} 12. Rae1 {[%clk 0:02:17.7]}
12... Nf8 {[%clk 0:02:53.1]} 13. Nf4 {[%clk 0:02:13.2]} 13... Qc7 {[%clk
0:02:41.7]} 14. g3 {[%clk 0:02:12.8]} 14... hxg3 {[%clk 0:02:34.4]} 15. fxg3
{[%clk 0:02:04.6]} 15... Ne6 {[%clk 0:02:33.3]} 16. Nh5 {[%clk 0:01:59.4]} 16...
Nf8 {[%clk 0:02:15]} 17. Bf4 {[%clk 0:01:41.2]} 17... Bh3 {[%clk 0:02:01.7]} 18.
Bxd6 {[%clk 0:01:38.1]} 18... Qxd6 {[%clk 0:02:00.5]} 19. Rxe8 {[%clk
0:01:35.4]} 19... Rxe8 {[%clk 0:02:01.4]} 20. Rc1 {[%clk 0:01:26.7]} 20... Qd5
{[%clk 0:02:00.4]} 21. Nf4 {[%clk 0:01:24.4]} 21... Qd7 {[%clk 0:01:56.6]} 22.
Qf2 {[%clk 0:01:07.9]} 22... Be6 {[%clk 0:01:48.5]} 23. b3 {[%clk 0:01:00.7]}
23... a5 {[%clk 0:01:43.1]} 24. Rf1 {[%clk 0:00:54.4]} 24... a4 {[%clk
0:01:39.3]} 25. Bc2 {[%clk 0:00:51.6]} 25... axb3 {[%clk 0:01:36.3]} 26. axb3
{[%clk 0:00:52.5]} 26... Bd5 {[%clk 0:01:32.8]} 27. Nh5 {[%clk 0:00:42.5]} 27...
Be4 {[%clk 0:01:23.3]} 28. Bd1 {[%clk 0:00:18.2]} 28... f5 {[%clk 0:01:03.6]}
29. Re1 {[%clk 0:00:13.7]} 29... Ng6 {[%clk 0:00:58.2]} 30. Nf4 {[%clk
0:00:13.1]} 30... Qd6 {[%clk 0:00:44.8]} 31. Nxg6 {[%clk 0:00:12.1]} 31... Qxg6
{[%clk 0:00:45.3]} 32. Bc2 {[%clk 0:00:11.7]} 32... f4 {[%clk 0:00:34.1]} 33.
Qxf4 {[%clk 0:00:09.1]} 33... f5 {[%clk 0:00:29.3]} 34. Bxe4 {[%clk 0:00:08]}
34... fxe4 {[%clk 0:00:28]} 35. c4 {[%clk 0:00:07.9]} 35... Qe6 {[%clk
0:00:18.9]} 36. h4 {[%clk 0:00:05.5]} 36... e3 {[%clk 0:00:18.1]} 37. Kh2 {[%clk
0:00:04.8]} 37... b5 {[%clk 0:00:16.8]} 38. h5 {[%clk 0:00:03]} 38... bxc4
{[%clk 0:00:16.2]} 39. bxc4 {[%clk 0:00:03.9]} 39... Qxc4 {[%clk 0:00:16.2]} 40.
Rxe3 {[%clk 0:00:04.1]} 40... Qc2+ {[%clk 0:00:14.8]} 41. Kh3 {[%clk 0:00:03.6]}
41... Rxe3 {[%clk 0:00:14.4]} 42. Qxe3 {[%clk 0:00:04.5]} 42... Qf5+ {[%clk
0:00:14.8]} 43. g4 {[%clk 0:00:04.4]} 43... Qf1+ {[%clk 0:00:14]} 44. Kg3 {[%clk
0:00:04.1]} 44... Qd1 {[%clk 0:00:12]} 45. Qe5 {[%clk 0:00:05]} 45... Qd3+
{[%clk 0:00:11]} 46. Kh4 {[%clk 0:00:05.1]} 46... Qc2 {[%clk 0:00:09.9]} 47. Kg5
{[%clk 0:00:05.1]} 47... Qd2+ {[%clk 0:00:09.1]} 48. Qf4 {[%clk 0:00:04.5]}
48... Qd3 {[%clk 0:00:07.6]} 49. Kh4 {[%clk 0:00:03.8]} 49... Qc4 {[%clk
0:00:05.8]} 50. g5 {[%clk 0:00:03.6]} 50... Qd5 {[%clk 0:00:05.6]} 51. Qe3
{[%clk 0:00:01.9]} 51... Qh1+ {[%clk 0:00:05]} 52. Kg4 {[%clk 0:00:01.4]} 52...
Qg2+ {[%clk 0:00:05.3]} 53. Kf4 {[%clk 0:00:01]} 53... Qh2+ {[%clk 0:00:05.4]}
0-1